bitfinex-derivatives/quotes_BTCF0:USTF0_20210409
["timestamp","ask_amount","ask_price","bid_price","bid_amount"]
[1617957642309,0.36341992,57765.0,57763.0,2.02096289]
[1617957642510,0.36375659,57770.0,57764.0,1.0]
[1617957642908,0.36375659,57770.0,57765.0,1.0]
[1617957643113,0.36378109,57771.0,57769.0,3.81523534]
[1617957643514,0.36378109,57771.0,57770.0,0.53820266]
[1617957644117,0.10725655,57780.0,57770.0,0.53820266]
[1617957644118,0.36295128,57775.0,57770.0,0.10725655]
[1617957644504,0.36295128,57775.0,57774.0,3.3343]
[1617957644616,0.36312164,57778.0,57774.0,3.3343]
[1617957644812,0.32152164,57778.0,57774.0,3.3343]
[1617957645013,0.44392966,57784.0,57774.0,3.39600864]
[1617957645212,0.44392966,57784.0,57775.0,0.59]
[1617957645412,0.44396356,57785.0,57783.0,0.10725655]
[1617957645612,0.44396356,57785.0,57783.0,0.22685655]
[1617957646240,0.50449029,57791.0,57784.0,0.59]
[1617957646241,0.44401299,57786.0,57784.0,0.59]
[1617957646712,0.44401299,57786.0,57783.0,0.22685655]
[1617957647116,0.44413185,57787.0,57784.0,0.59]
[1617957647517,0.44413185,57787.0,57783.0,0.22685655]
[1617957647914,0.44413185,57787.0,57784.0,0.59]
[1617957648115,0.44417346,57788.0,57784.0,0.59]
[1617957648315,0.44417346,57788.0,57783.0,0.22685655]
[1617957648517,0.1627432,57786.0,57783.0,0.22685655]
[1617957648718,0.1627432,57786.0,57785.0,0.59]
[1617957649017,0.44429075,57789.0,57783.0,0.22685655]
[1617957649420,0.16279631,57786.0,57784.0,0.59]
[1617957649917,0.4443328,57790.0,57783.0,0.22685655]
[1617957650116,0.4443328,57790.0,57786.0,0.0517]
[1617957650318,0.4443328,57790.0,57783.0,0.22685655]
[1617957650818,0.4443328,57790.0,57786.0,0.59]
[1617957651119,0.44452969,57793.0,57783.0,0.22685655]
[1617957651422,0.44452969,57793.0,57792.0,2.61105655]
[1617957652420,0.44452969,57793.0,57792.0,3.20105655]
[1617957653721,0.44460794,57794.0,57792.0,3.20105655]
[1617957654121,0.44460794,57794.0,57792.0,2.61105655]
[1617957654529,0.44460794,57794.0,57793.0,0.59]
[1617957654724,0.44475738,57795.0,57793.0,0.59]
[1617957655124,0.16289103,57794.0,57792.0,2.61105655]
[1617957655532,0.44344119,57801.0,57793.0,0.59]
[1617957655927,0.44352181,57802.0,57792.0,2.61105655]
[1617957656225,0.44352181,57802.0,57794.0,0.59]
[1617957656626,0.44352181,57802.0,57792.0,2.61105655]
[1617957656826,0.44358843,57803.0,57792.0,2.61105655]
[1617957657026,0.16244849,57801.0,57795.0,0.59]
[1617957657226,0.16244849,57801.0,57795.0,0.14631]
[1617957657426,0.16244849,57801.0,57800.0,0.10725655]
[1617957657627,0.44358843,57803.0,57801.0,3.125]
[1617957659747,0.44358843,57803.0,57802.0,0.59]
[1617957660061,0.44354174,57804.0,57802.0,0.59]
[1617957660229,0.17475272,57803.0,57802.0,0.59]
[1617957660429,0.17475272,57803.0,57802.0,3.4502]
[1617957660628,0.17475272,57803.0,57802.0,2.8602]
[1617957661230,0.44359996,57805.0,57802.0,2.8602]
[1617957661231,0.61835346,57805.0,57802.0,2.8602]
[1617957661736,0.61835346,57805.0,57802.0,3.4502]
[1617957662133,0.1747535,57805.0,57802.0,3.4502]
[1617957662833,0.61839674,57805.0,57802.0,3.4502]
[1617957664735,0.61839674,57805.0,57802.0,2.8602]
[1617957665035,0.61839674,57805.0,57802.0,3.4502]
[1617957665236,0.61839674,57805.0,57802.0,0.59]
[1617957665437,0.1747535,57805.0,57800.0,2.75655655]
[1617957667039,0.1747535,57805.0,57800.0,0.10725655]
[1617957667251,2.8349,57801.0,57800.0,0.10725655]
[1617957667468,2.95459,57801.0,57800.0,0.10725655]
[1617957667738,3.12909319,57801.0,57800.0,0.10725655]
[1617957668237,4.12909319,57801.0,57800.0,0.10725655]
[1617957668739,1.29419319,57801.0,57800.0,0.10725655]
[1617957669538,1.17450319,57801.0,57800.0,0.10725655]
[1617957669938,0.17450319,57801.0,57800.0,0.10725655]
[1617957670238,0.53695805,57801.0,57800.0,0.10725655]
[1617957671140,1.53695805,57801.0,57800.0,0.10725655]
[1617957671340,1.36245486,57801.0,57800.0,0.10725655]
[1617957671540,0.36245486,57801.0,57800.0,0.10725655]
[1617957671841,0.53719554,57801.0,57800.0,0.10725655]
[1617957672340,0.36245486,57801.0,57800.0,0.10725655]
[1617957672663,0.36245486,57801.0,57800.0,0.25885655]
[1617957672862,0.17471026,57801.0,57800.0,2.83565655]
[1617957673043,0.17471026,57801.0,57800.0,3.42565655]
[1617957673242,0.36306624,57804.0,57800.0,3.42565655]
[1617957673483,0.21806624,57804.0,57800.0,3.42565655]
[1617957673671,0.10725655,57806.0,57800.0,2.83565655]
[1617957673846,0.08925655,57806.0,57800.0,2.83565655]
[1617957674044,1.2,57825.0,57801.0,0.59]
[1617957674045,0.4438593,57814.0,57801.0,0.59]
[1617957674343,0.4438593,57814.0,57813.0,2.7493]
[1617957674541,0.4438593,57814.0,57813.0,2.8912]
[1617957674944,0.44348293,57816.0,57813.0,2.8912]
[1617957675357,0.14773108,57814.0,57813.0,2.8912]
[1617957675642,0.14773108,57814.0,57813.0,2.99845655]
[1617957675843,0.61120069,57822.0,57813.0,2.99845655]
[1617957675844,0.44367119,57818.0,57813.0,3.58845655]
[1617957676264,0.14778797,57814.0,57813.0,2.99845655]
[1617957676848,0.44377872,57819.0,57813.0,2.99845655]
[1617957677045,0.44377872,57819.0,57813.0,3.58845655]
[1617957677246,0.44381633,57820.0,57813.0,3.58845655]
[1617957677445,0.44381633,57820.0,57813.0,2.99845655]
[1617957677646,0.44381633,57820.0,57819.0,0.10725655]
[1617957677987,0.44381633,57820.0,57819.0,3.28555655]
[1617957678180,0.44387695,57821.0,57819.0,3.28555655]
[1617957678400,0.44387695,57821.0,57819.0,3.87555655]
[1617957678652,0.14458812,57820.0,57819.0,3.28555655]
[1617957679053,0.44400236,57822.0,57819.0,3.87555655]
[1617957679367,0.14468905,57820.0,57819.0,3.28555655]
[1617957679805,0.44437134,57826.0,57820.0,0.59]
[1617957680182,0.44437134,57826.0,57819.0,3.28555655]
[1617957680655,0.44443342,57827.0,57821.0,0.59]
[1617957680856,0.44443342,57827.0,57819.0,3.28555655]
[1617957681059,0.14476491,57825.0,57819.0,3.28555655]
[1617957681257,0.14476491,57825.0,57822.0,0.59]
[1617957681557,0.44478056,57831.0,57819.0,3.28555655]
[1617957681756,0.44478056,57831.0,57823.0,0.59]
[1617957681960,0.44518776,57829.0,57823.0,0.59]
[1617957682158,0.44518776,57829.0,57819.0,3.28555655]
[1617957682557,0.44518776,57829.0,57824.0,0.59]
[1617957682858,0.44518776,57829.0,57819.0,3.28555655]
[1617957683257,0.44518776,57829.0,57825.0,0.59]
[1617957683457,0.44518776,57829.0,57825.0,0.68733]
[1617957683759,0.44511122,57830.0,57828.0,0.10725655]
[1617957684159,0.44518402,57831.0,57828.0,0.10725655]
[1617957684758,0.44523341,57830.0,57828.0,0.10725655]
[1617957685160,0.14459492,57830.0,57828.0,0.10725655]
[1617957685562,0.44433228,57834.0,57828.0,0.10725655]
[1617957685563,0.14459019,57829.0,57828.0,0.10725655]
[1617957685968,0.44433228,57834.0,57828.0,0.10725655]
[1617957686759,0.44431946,57833.0,57828.0,0.10725655]
[1617957687661,0.44435088,57834.0,57828.0,0.10725655]
[1617957689666,0.58904124,57835.0,57828.0,0.10725655]
[1617957690063,0.10725655,57836.0,57829.0,0.59]
[1617957690064,0.14463343,57833.0,57829.0,0.59]
[1617957690484,0.55173942,57836.0,57828.0,0.10725655]
[1617957690485,0.14465578,57834.0,57828.0,0.10725655]
[1617957690864,0.14464606,57835.0,57830.0,0.59]
[1617957691373,0.14464606,57835.0,57828.0,0.10725655]
[1617957691767,0.58920007,57835.0,57834.0,0.10725655]
[1617957692076,0.58920007,57835.0,57834.0,3.62315655]
[1617957692677,0.44455401,57835.0,57834.0,3.62315655]
[1617957693466,0.10725655,57836.0,57834.0,3.62315655]
[1617957693467,0.55204554,57836.0,57834.0,3.62315655]
[1617957693868,0.4457232,57835.0,57834.0,3.62315655]
[1617957695175,0.59074943,57835.0,57834.0,3.62315655]
[1617957695471,0.4457232,57835.0,57834.0,3.62315655]
[1617957696072,0.59074163,57835.0,57834.0,3.62315655]
[1617957696573,0.4457232,57835.0,57834.0,3.62315655]
[1617957696976,0.59088864,57835.0,57834.0,3.62315655]
[1617957698177,1.59088864,57835.0,57834.0,0.10725655]
[1617957698775,1.95622566,57835.0,57834.0,0.10725655]
[1617957699777,5.11342566,57835.0,57834.0,0.10725655]
[1617957700580,5.4284261,57835.0,57834.0,0.10725655]
[1617957701277,2.2712261,57835.0,57834.0,0.10725655]
[1617957701579,1.2712261,57835.0,57834.0,3.69455655]
[1617957701792,1.2712261,57835.0,57834.0,3.78787655]
[1617957701793,0.95622566,57835.0,57834.0,3.78787655]
[1617957702327,0.51050246,57835.0,57834.0,3.78787655]
[1617957702684,0.36533702,57835.0,57834.0,3.78787655]
[1617957704084,0.8136268,57835.0,57834.0,3.78787655]
[1617957705685,0.8136268,57835.0,57834.0,4.37787655]
[1617957705887,0.8136268,57835.0,57834.0,3.78787655]
[1617957706187,0.36533702,57835.0,57834.0,3.78787655]
[1617957706587,0.52001384,57835.0,57834.0,3.78787655]
[1617957706988,0.36533702,57835.0,57834.0,3.78787655]
[1617957707288,0.36533702,57835.0,57834.0,4.37787655]
[1617957707488,0.51991088,57835.0,57834.0,4.37787655]
[1617957707690,0.51991088,57835.0,57834.0,3.78787655]
[1617957707995,0.36533702,57835.0,57834.0,3.78787655]
[1617957708291,0.5198681,57835.0,57834.0,3.78787655]
[1617957708692,0.5198681,57835.0,57834.0,4.37787655]
[1617957708893,0.36533702,57835.0,57834.0,4.37787655]
[1617957709091,0.36533702,57835.0,57834.0,3.78787655]
[1617957709293,0.51989781,57835.0,57834.0,3.78787655]
[1617957709694,0.36533702,57835.0,57834.0,3.78787655]
[1617957710894,0.36533702,57835.0,57834.0,4.37787655]
[1617957711094,0.36533702,57835.0,57834.0,3.83997655]
[1617957711393,0.36533702,57835.0,57834.0,4.42997655]
[1617957712397,0.36533702,57835.0,57834.0,4.37787655]
[1617957712596,0.36533702,57835.0,57834.0,3.78787655]
[1617957713649,0.15454146,57839.0,57834.0,3.78787655]
[1617957713795,0.11154146,57839.0,57834.0,5.37787655]
[1617957713961,0.63573006,57871.0,57835.0,0.2]
[1617957713962,0.50872105,57855.0,57835.0,0.2]
[1617957714161,0.31999063,57855.0,57854.0,3.3445]
[1617957714302,1.0,57878.0,57854.0,3.46765]
[1617957714501,1.0,57878.0,57854.0,0.12315]
[1617957714701,1.90054481,57895.0,57854.0,0.12315]
[1617957714702,3.2983,57875.0,57868.0,2.8608]
[1617957714901,1.0,57869.0,57868.0,0.12074]
[1617957715104,4.2997,57869.0,57868.0,0.12074]
[1617957715305,3.2997,57869.0,57868.0,0.12074]
[1617957715908,0.10725655,57874.0,57868.0,0.22799655]
[1617957716106,4.2792,57869.0,57868.0,0.10725655]
[1617957716306,1.13554,57869.0,57868.0,0.10725655]
[1617957716506,0.13554,57869.0,57868.0,3.82845655]
[1617957717508,0.10725655,57874.0,57868.0,3.82845655]
[1617957717708,1.0,57875.0,57868.0,0.20283655]
[1617957717910,1.0,57889.0,57874.0,0.10725655]
[1617957718710,1.0,57890.0,57875.0,0.59]
[1617957718909,1.0,57891.0,57875.0,0.59]
[1617957719111,1.0,57891.0,57874.0,0.10725655]
[1617957719512,1.0,57891.0,57876.0,0.59]
[1617957719713,1.0,57891.0,57874.0,0.10725655]
[1617957720013,1.10725655,57892.0,57890.0,0.10725655]
[1617957720213,0.10725655,57892.0,57890.0,0.21285655]
[1617957722129,1.0,57895.0,57890.0,0.21285655]
[1617957722516,1.0,57896.0,57890.0,0.21285655]
[1617957723117,1.0,57898.0,57895.0,2.7381]
[1617957723416,1.0,57899.0,57890.0,0.80285655]
[1617957723619,1.0,57899.0,57898.0,3.3642]
[1617957723817,3.3834,57905.0,57903.0,0.10725655]
[1617957724019,1.5,57904.0,57903.0,0.25247655]
[1617957724418,1.31450628,57904.0,57903.0,0.25247655]
[1617957725818,1.42176283,57904.0,57903.0,0.25247655]
[1617957726017,1.42176283,57904.0,57903.0,3.50717655]
[1617957726220,1.42176283,57904.0,57903.0,3.50614972]
[1617957726820,0.10725655,57904.0,57903.0,3.50614972]
[1617957727020,1.10725655,57904.0,57903.0,3.50614972]
[1617957729724,2.60725655,57904.0,57903.0,0.25144972]
[1617957729924,5.42965655,57904.0,57887.0,0.10725655]
[1617957730124,2.60725655,57904.0,57887.0,0.10725655]
[1617957730325,2.8228,57891.0,57887.0,0.10725655]
[1617957730724,1.0,57888.0,57887.0,0.10725655]
[1617957732023,1.10725655,57888.0,57887.0,0.10725655]
[1617957732224,0.10725655,57888.0,57887.0,0.10725655]
[1617957732625,1.10725655,57888.0,57887.0,0.10725655]
[1617957733628,0.10725655,57888.0,57887.0,0.10725655]
[1617957733929,1.10725655,57888.0,57887.0,0.10725655]
[1617957737034,1.10725655,57888.0,57887.0,3.41925655]
[1617957737233,1.10725655,57888.0,57887.0,0.10725655]
[1617957737534,4.40205655,57888.0,57887.0,0.10725655]
[1617957737733,5.40205655,57888.0,57887.0,0.10725655]
[1617957737935,3.90205655,57888.0,57887.0,0.10725655]
[1617957739635,5.40205655,57888.0,57887.0,0.10725655]
[1617957740757,3.90205655,57888.0,57887.0,0.10725655]
[1617957741160,5.40205655,57888.0,57887.0,0.10725655]
[1617957741360,4.10205655,57888.0,57887.0,0.10725655]
[1617957741742,3.90205655,57888.0,57887.0,0.10725655]
[1617957741940,5.40205655,57888.0,57887.0,0.10725655]
[1617957742544,3.90205655,57888.0,57887.0,0.10725655]
[1617957744045,5.40205655,57888.0,57887.0,0.10725655]
[1617957744246,5.52964655,57888.0,57887.0,0.10725655]
[1617957744945,5.52964655,57888.0,57887.0,0.15875655]
[1617957745146,5.52964655,57888.0,57887.0,0.10725655]
[1617957745547,5.40205655,57888.0,57887.0,0.10725655]
[1617957747350,5.51315655,57888.0,57887.0,0.10725655]
[1617957748649,5.40205655,57888.0,57887.0,0.10725655]
[1617957751265,4.40205655,57888.0,57887.0,0.10725655]
[1617957751550,5.40205655,57888.0,57887.0,0.10725655]
[1617957753050,4.40205655,57888.0,57887.0,0.10725655]
[1617957753251,5.40205655,57888.0,57887.0,0.10725655]
[1617957757555,5.90985218,57888.0,57887.0,0.10725655]
[1617957757954,5.40205655,57888.0,57887.0,0.10725655]
[1617957758355,5.40205655,57888.0,57887.0,3.57855655]
[1617957763864,5.40205655,57888.0,57887.0,0.10725655]
[1617957767169,6.48476694,57888.0,57887.0,0.10725655]
[1617957767972,6.48476694,57888.0,57877.0,0.3074673]
[1617957768170,0.10725655,57878.0,57877.0,0.3074673]
[1617957768371,0.61805879,57878.0,57877.0,0.3074673]
[1617957769072,0.61805879,57878.0,57877.0,3.6053673]
[1617957769472,1.61805879,57878.0,57877.0,3.6053673]
[1617957769873,1.61805879,57878.0,57877.0,0.3074673]
[1617957770078,1.61805879,57878.0,57877.0,3.9801673]
[1617957772575,0.61805879,57878.0,57877.0,3.9801673]
[1617957772778,1.61805879,57878.0,57877.0,3.9801673]
[1617957773184,1.10725655,57878.0,57877.0,3.9801673]
[1617957773583,1.19966965,57878.0,57877.0,4.47146201]
[1617957773879,1.10725655,57878.0,57877.0,4.47146201]
[1617957774079,0.10725655,57878.0,57877.0,4.47146201]
[1617957774280,0.10725655,57878.0,57877.0,0.79876201]
[1617957774480,1.10725655,57878.0,57877.0,0.79876201]
[1617957774681,1.10725655,57878.0,57877.0,0.67648201]
[1617957776085,1.61824676,57878.0,57877.0,0.3074673]
[1617957781288,1.61824676,57878.0,57877.0,3.47326349]
[1617957781989,1.10725655,57878.0,57877.0,3.47326349]
[1617957782188,1.0,57878.0,57877.0,3.47326349]
[1617957784091,1.0,57879.0,57877.0,3.47326349]
[1617957784691,1.0,57879.0,57878.0,0.73829906]
[1617957785692,0.51162839,57881.0,57878.0,0.73829906]
[1617957785992,1.0,57879.0,57878.0,0.73829906]
[1617957786895,1.51141523,57879.0,57878.0,0.3691941]
[1617957788295,4.74271523,57879.0,57878.0,0.3691941]
[1617957788797,4.83512817,57879.0,57878.0,0.30758747]
[1617957789497,3.83512817,57879.0,57878.0,0.30758747]
[1617957789697,4.83512817,57879.0,57878.0,0.30758747]
[1617957791899,4.83512817,57879.0,57878.0,0.67669404]
[1617957792500,4.32371294,57879.0,57878.0,0.67669404]
[1617957797411,4.32371294,57879.0,57878.0,0.78356404]
[1617957797907,4.32371294,57879.0,57878.0,0.84517046]
[1617957798908,4.2313,57879.0,57878.0,0.84517046]
[1617957799207,1.0,57879.0,57878.0,0.84517046]
[1617957799408,1.0,57879.0,57878.0,3.53527046]
[1617957801112,1.0,57879.0,57878.0,4.57607696]
[1617957803813,1.0,57883.0,57878.0,4.57607696]
[1617957804113,0.51133082,57887.0,57879.0,0.2]
[1617957804448,0.51155191,57889.0,57882.0,0.78344099]
[1617957804914,0.51166636,57892.0,57888.0,0.67615827]
[1617957805815,0.51173489,57893.0,57891.0,0.30732949]
[1617957806016,0.51173489,57893.0,57891.0,0.44809949]
[1617957806216,0.51188557,57894.0,57891.0,0.81689491]
[1617957806416,0.51188557,57894.0,57893.0,2.6126]
[1617957806615,0.51188557,57894.0,57893.0,2.91992837]
[1617957809018,0.51188557,57894.0,57893.0,3.50992837]
[1617957809522,1.0,57897.0,57893.0,3.2026]
[1617957809923,0.0923937,57896.0,57893.0,3.2026]
[1617957810324,1.0,57897.0,57893.0,3.2026]
[1617957811725,1.51102169,57898.0,57893.0,2.6126]
[1617957811926,1.0,57897.0,57892.0,0.10725655]
[1617957812127,1.0,57897.0,57896.0,3.7274]
[1617957812326,0.5110561,57899.0,57898.0,0.10725655]
[1617957812727,0.09239435,57899.0,57898.0,0.10725655]
[1617957813027,0.60337261,57899.0,57898.0,0.10725655]
[1617957814232,1.60337261,57899.0,57898.0,0.10725655]
[1617957814432,1.71062916,57899.0,57898.0,0.10725655]
[1617957816732,0.71062916,57899.0,57898.0,0.10725655]
[1617957816934,1.71062916,57899.0,57898.0,0.10725655]
[1617957823240,1.1996509,57899.0,57898.0,0.10725655]
[1617957823639,1.71086591,57899.0,57898.0,0.10725655]
[1617957824041,1.1996509,57899.0,57898.0,0.10725655]
[1617957824540,1.71087759,57899.0,57898.0,0.10725655]
[1617957827441,0.71087759,57899.0,57898.0,0.10725655]
[1617957827640,2.21087759,57899.0,57898.0,0.10725655]
[1617957827840,1.1996509,57899.0,57898.0,0.10725655]
[1617957828140,1.71083635,57899.0,57898.0,0.10725655]
[1617957836354,1.3449409,57899.0,57898.0,0.10725655]
[1617957836755,1.85647123,57899.0,57898.0,0.10725655]
[1617957837057,5.01457123,57899.0,57898.0,0.10725655]
[1617957837254,4.92217688,57899.0,57898.0,0.10725655]
[1617957837454,1.76407688,57899.0,57898.0,0.10725655]
[1617957837656,1.85646115,57899.0,57898.0,2.76405655]
[1617957838255,1.76407688,57899.0,57898.0,2.76405655]
[1617957838656,1.61878688,57899.0,57898.0,2.76405655]
[1617957839658,1.10725655,57899.0,57898.0,2.76405655]
[1617957839956,1.19963782,57899.0,57898.0,2.76405655]
[1617957840357,1.10725655,57899.0,57898.0,2.76405655]
[1617957840757,1.10725655,57899.0,57898.0,0.10725655]
[1617957840959,4.64455655,57899.0,57898.0,0.10725655]
[1617957841257,1.10725655,57899.0,57898.0,0.10725655]
[1617957841557,1.19963772,57899.0,57898.0,3.70585655]
[1617957841959,1.10725655,57899.0,57898.0,3.70585655]
[1617957842559,0.61917609,57899.0,57898.0,3.70585655]
[1617957843171,0.10725655,57899.0,57898.0,3.70585655]
[1617957843459,0.19963808,57899.0,57898.0,3.70585655]
[1617957843859,0.10725655,57899.0,57898.0,4.01260536]
[1617957844258,0.10725655,57899.0,57898.0,3.70585655]
[1617957844662,0.10725655,57899.0,57898.0,4.0125729]
[1617957845968,0.10725655,57899.0,57898.0,3.70585655]
[1617957846568,1.10725655,57899.0,57898.0,3.70585655]
[1617957847369,1.10725655,57899.0,57898.0,4.01256506]
[1617957848273,0.10725655,57899.0,57898.0,4.01256506]
[1617957848472,0.10725655,57899.0,57898.0,0.41396506]
[1617957848973,0.10725655,57899.0,57898.0,0.10725655]
[1617957849375,0.61916058,57899.0,57898.0,0.10725655]
[1617957849574,0.61916058,57899.0,57898.0,3.68505655]
[1617957849777,0.10725655,57899.0,57898.0,3.99176026]
[1617957849976,1.10725655,57899.0,57898.0,3.99176026]
[1617957850177,1.10725655,57899.0,57898.0,3.68505655]
[1617957850577,1.10725655,57899.0,57898.0,3.9917356]
[1617957851378,0.10725655,57899.0,57898.0,3.9917356]
[1617957851578,0.10725655,57899.0,57898.0,4.1056956]
[1617957855081,2.79115655,57899.0,57898.0,0.5278956]
[1617957855480,0.10725655,57899.0,57898.0,0.5278956]
[1617957855881,0.19963282,57899.0,57898.0,0.5278956]
[1617957856282,0.10725655,57899.0,57898.0,0.5278956]
[1617957857684,0.10725655,57899.0,57898.0,0.89554245]
[1617957858485,0.10725655,57899.0,57898.0,1.48554245]
[1617957860185,0.51260181,57902.0,57901.0,3.3998]
[1617957860586,0.51260181,57902.0,57901.0,4.13632558]
[1617957860986,1.03759265,57903.0,57901.0,4.13632558]
[1617957861386,1.03759265,57903.0,57902.0,0.73644919]
[1617957862286,1.03759265,57903.0,57902.0,4.24814919]
[1617957863090,0.525,57903.0,57902.0,4.83814919]
[1617957863289,0.525,57903.0,57902.0,5.28767704]
[1617957863989,0.525,57903.0,57902.0,5.48767704]
[1617957864389,0.525,57903.0,57902.0,5.53887704]
[1617957865391,0.525,57903.0,57902.0,5.03814919]
[1617957865794,0.525,57903.0,57902.0,5.48498294]
[1617957868998,0.525,57903.0,57902.0,5.99210388]
[1617957870203,0.525,57903.0,57902.0,2.48040388]
[1617957870574,0.525,57903.0,57902.0,3.48040388]
[1617957870905,0.4314,57903.0,57902.0,3.48040388]
[1617957871106,0.4314,57903.0,57902.0,4.13951575]
[1617957871305,0.43037416,57903.0,57902.0,3.13951575]
[1617957871506,0.43037416,57903.0,57902.0,3.04719012]
[1617957871706,0.43037416,57903.0,57902.0,4.04719012]
[1617957872710,0.43037416,57903.0,57902.0,4.13951583]
[1617957874112,0.43037416,57903.0,57902.0,3.13951583]
[1617957874316,0.43037416,57903.0,57902.0,4.13951583]
[1617957874510,0.42577416,57903.0,57902.0,4.04719012]
[1617957874909,0.38377416,57903.0,57902.0,4.04719012]
[1617957875112,0.38377416,57903.0,57902.0,4.13951466]
[1617957875313,0.29987416,57903.0,57902.0,4.13951466]
[1617957875710,0.27987416,57903.0,57902.0,4.13951466]
[1617957876312,0.27467416,57903.0,57902.0,4.13951466]
[1617957877113,0.24877416,57903.0,57902.0,4.13951466]
[1617957877316,0.24877416,57903.0,57902.0,3.57272842]
[1617957880218,0.24877416,57903.0,57902.0,2.57272842]
[1617957880419,0.24877416,57903.0,57902.0,3.57272842]
[1617957880618,0.24877416,57903.0,57902.0,3.48040388]
[1617957881119,0.24877416,57903.0,57902.0,3.57272384]
[1617957881619,0.24774839,57903.0,57902.0,3.57272384]
[1617957883322,0.18754839,57903.0,57902.0,3.68061384]
[1617957883522,0.16134839,57903.0,57902.0,3.68061384]
[1617957885323,0.16134839,57903.0,57902.0,4.24380415]
[1617957888230,0.16134839,57903.0,57902.0,3.68061384]
[1617957889529,0.11844839,57903.0,57902.0,3.68061384]
[1617957891632,0.1174227,57903.0,57902.0,3.68061384]
[1617957893733,0.1174227,57903.0,57902.0,2.68061384]
[1617957894234,0.1174227,57903.0,57902.0,3.68061384]
[1617957894635,0.1174227,57903.0,57902.0,3.58829388]
[1617957895036,0.1174227,57903.0,57902.0,3.68060356]
[1617957897235,0.1174227,57903.0,57902.0,4.24242595]
[1617957897635,0.1174227,57903.0,57902.0,3.68060356]
[1617957898337,0.0900227,57903.0,57902.0,3.09060356]
[1617957899035,0.0900227,57903.0,57902.0,2.99829388]
[1617957899435,0.0900227,57903.0,57902.0,3.09060212]
[1617957899635,0.0900227,57903.0,57902.0,2.98271212]
[1617957899836,0.0900227,57903.0,57902.0,2.89040388]
[1617957900639,0.0900227,57903.0,57902.0,2.69040388]
[1617957900844,0.0900227,57903.0,57902.0,2.89040388]
[1617957901038,0.0900227,57903.0,57902.0,1.89040388]
[1617957901340,0.0560227,57903.0,57902.0,2.89040388]
[1617957902039,0.05499704,57903.0,57902.0,3.01621388]
[1617957902339,0.05499704,57903.0,57902.0,3.57853661]
[1617957903038,0.05179704,57903.0,57902.0,3.57853661]
[1617957903240,0.03819704,57903.0,57902.0,3.57853661]
[1617957907893,0.01369704,57903.0,57902.0,3.57853661]
[1617957910149,9.704e-05,57903.0,57902.0,3.57853661]
[1617957912455,0.10725655,57945.0,57943.0,2.4973]
[1617957912855,0.10725655,57945.0,57944.0,0.10725655]
[1617957920967,1.10725655,57945.0,57944.0,2.62355655]
[1617957922464,1.10725655,57945.0,57944.0,0.10725655]
[1617957923166,1.10725655,57945.0,57944.0,0.15845655]
[1617957923367,1.10725655,57945.0,57944.0,2.61565655]
[1617957923572,1.10725655,57945.0,57944.0,0.10725655]
[1617957923768,1.10725655,57945.0,57944.0,2.61485655]
[1617957925573,1.10725655,57945.0,57944.0,2.91590517]
[1617957928077,1.10725655,57945.0,57944.0,3.50590517]
[1617957928376,1.10725655,57945.0,57944.0,2.91590517]
[1617957930379,0.10725655,57945.0,57944.0,2.91590517]
[1617957931080,0.10725655,57945.0,57944.0,2.96790517]
[1617957931817,0.51114821,57953.0,57944.0,2.96790517]
[1617957931982,0.51114821,57953.0,57944.0,0.46030517]
[1617957932198,0.51114821,57953.0,57952.0,3.4684]
[1617957932464,1.11448469,57982.0,57952.0,3.60114]
[1617957932465,0.49029369,57957.0,57952.0,3.60114]
[1617957932685,0.09228207,57970.0,57952.0,4.32346203]
[1617957932882,0.09228207,57970.0,57953.0,0.59]
[1617957933222,0.57236197,57977.0,57969.0,0.10725655]
[1617957933384,0.57235904,57978.0,57969.0,0.20943655]
[1617957933583,0.57235904,57978.0,57976.0,3.1846]
[1617957933584,0.09227877,57977.0,57976.0,3.1846]
[1617957933983,0.035,57979.0,57976.0,3.1846]
[1617957934183,0.035,57979.0,57976.0,3.7746]
[1617957935183,0.035,57979.0,57978.0,0.10725655]
[1617957936785,1.035,57979.0,57978.0,0.10725655]
[1617957937896,0.035,57979.0,57978.0,0.10725655]
[1617957938600,1.035,57979.0,57978.0,0.10725655]
[1617957940687,1.235,57979.0,57978.0,0.10725655]
[1617957940888,1.235,57979.0,57978.0,2.82025655]
[1617957941088,0.235,57979.0,57978.0,2.82025655]
[1617957941290,1.235,57979.0,57978.0,2.82025655]
[1617957941489,0.235,57979.0,57978.0,2.82025655]
[1617957941689,1.035,57979.0,57978.0,2.82025655]
[1617957942995,0.035,57979.0,57978.0,2.82025655]
[1617957943189,1.035,57979.0,57978.0,2.82025655]
[1617957943913,0.035,57979.0,57978.0,2.82025655]
[1617957944390,1.035,57979.0,57978.0,2.82025655]
[1617957944617,1.035,57979.0,57978.0,0.10725655]
[1617957945093,0.035,57979.0,57978.0,0.10725655]
[1617957948096,0.035,57979.0,57978.0,0.69725655]
[1617957953706,0.035,57979.0,57978.0,0.74905655]
[1617957954320,0.035,57979.0,57978.0,0.69725655]
[1617957955811,0.0151,57979.0,57978.0,0.69725655]
[1617957961913,0.0151,57979.0,57978.0,0.74835655]
[1617957962214,0.0151,57979.0,57978.0,0.69725655]
[1617957963216,0.0151,57979.0,57978.0,0.74835655]
[1617957963614,0.12816,57979.0,57978.0,0.74835655]
[1617957963814,0.12816,57979.0,57978.0,0.10725655]
[1617957964114,1.12816,57979.0,57978.0,0.10725655]
[1617957965450,1.23541655,57979.0,57978.0,0.10725655]
[1617957967818,1.23541655,57979.0,57978.0,0.37725655]
[1617957968422,0.23541655,57979.0,57978.0,0.37725655]
[1617957968621,1.23541655,57979.0,57978.0,0.37725655]
[1617957971424,1.43541655,57979.0,57978.0,0.37725655]
[1617957971627,1.23541655,57979.0,57978.0,0.37725655]
[1617957972525,1.43541655,57979.0,57978.0,0.37725655]
[1617957975428,0.43541655,57979.0,57978.0,0.37725655]
[1617957975630,1.43541655,57979.0,57978.0,0.37725655]
[1617957975829,2.93541655,57979.0,57978.0,0.37725655]
[1617957976430,3.02767386,57979.0,57978.0,0.37725655]
[1617957977031,3.02767386,57979.0,57978.0,0.27]
[1617957977534,2.92041731,57979.0,57972.0,0.10725655]
[1617957977731,2.8,57976.0,57972.0,0.10725655]
[1617957977931,0.2,57975.0,57972.0,0.10725655]
[1617957978131,0.2,57975.0,57973.0,0.27]
[1617957978732,1.0,57974.0,57973.0,0.27]
[1617957979534,2.60725655,57974.0,57973.0,0.27]
[1617957981615,2.60725655,57974.0,57960.0,0.27]
[1617957981737,2.8978,57964.0,57960.0,0.27]
[1617957981936,4.53967,57964.0,57961.0,0.0518]
[1617957982256,0.2,57963.0,57961.0,0.27]
[1617957982435,1.5,57962.0,57958.0,0.01]
[1617957982637,0.2,57961.0,57957.0,0.26]